bitfinex-derivatives/quotes_BTCF0:USTF0_20260113
["timestamp","ask_amount","ask_price","bid_price","bid_amount"]
[1768323594073,0.010704,93462.0,93446.0,0.0964]
[1768323594267,0.010705,93460.0,93446.0,0.0964]
[1768323594973,0.0964,93472.0,93448.0,0.09942984]
[1768323595166,0.010705,93460.0,93448.0,0.09942984]
[1768323595369,0.010704,93468.0,93449.0,0.19916882]
[1768323595564,0.010704,93466.0,93451.0,0.09942984]
[1768323595765,0.0964,93472.0,93451.0,0.09942984]
[1768323595965,0.010704,93465.0,93451.0,0.09942984]
[1768323596773,0.010704,93463.0,93451.0,0.09942984]
[1768323597774,0.010704,93466.0,93451.0,0.09942984]
[1768323599776,0.010704,93469.0,93453.0,0.09942984]
[1768323599972,0.0964,93472.0,93453.0,0.09942984]
[1768323600274,0.10631789,93471.0,93445.0,0.09942984]
[1768323600466,0.010704,93464.0,93447.0,0.09973898]
[1768323600669,0.0964,93472.0,93458.0,0.09973898]
[1768323600869,0.10626809,93485.0,93463.0,0.09942984]
[1768323601176,0.0964,93486.0,93468.0,0.19916882]
[1768323601368,0.0107,93497.0,93474.0,0.09973898]
[1768323601675,0.05904224,93517.0,93494.0,0.09942984]
[1768323601867,0.05904224,93517.0,93496.0,0.09942984]
[1768323602064,0.09561489,93535.0,93499.0,0.03033884]
[1768323602266,0.09561489,93527.0,93499.0,0.09033884]
[1768323602568,0.010698,93522.0,93500.0,0.04390808]
[1768323602765,0.08204565,93527.0,93492.0,0.04390808]
[1768323602766,0.0985835,93527.0,93492.0,0.04390808]
[1768323602971,0.0985835,93521.0,93485.0,0.04347855]
[1768323603181,0.0985835,93518.0,93486.0,0.09636]
[1768323603368,0.010699,93513.0,93486.0,0.13636]
[1768323603675,0.0107,93504.0,93487.0,0.09636]
[1768323603874,0.010699,93508.0,93493.0,0.00016038]
[1768323604177,0.0985835,93513.0,93493.0,0.00016038]
[1768323604375,0.09561489,93512.0,93494.0,0.09636]
[1768323604862,0.09561489,93512.0,93493.0,0.00016038]
[1768323605062,0.10631389,93512.0,93494.0,0.09636]
[1768323605264,0.0947229,93508.0,93493.0,0.09636]
[1768323605667,0.0947229,93507.0,93493.0,0.09636]
[1768323605868,0.0947229,93507.0,93485.0,0.09636]
[1768323606070,0.00016038,93512.0,93488.0,0.05334192]
[1768323606269,0.00016038,93512.0,93488.0,0.04264092]
[1768323606769,3.8e-07,93512.0,93489.0,0.04264092]
[1768323606969,3.8e-07,93512.0,93495.0,0.04977931]
[1768323607170,3.8e-07,93512.0,93497.0,0.01422274]
[1768323607379,3.8e-07,93512.0,93496.0,0.09636]
[1768323607681,3.8e-07,93512.0,93496.0,0.13636]
[1768323607871,3.8e-07,93512.0,93499.0,0.0107]
[1768323608077,3.8e-07,93512.0,93500.0,0.00352274]
[1768323608270,0.09424844,93525.0,93501.0,0.09636]
[1768323608574,0.09424844,93525.0,93501.0,0.10706]
[1768323609377,0.09424844,93525.0,93503.0,0.0107]
[1768323609683,0.09636,93532.0,93509.0,0.010699]
[1768323609880,0.09636,93532.0,93509.0,0.060699]
[1768323610284,0.09636,93532.0,93511.0,0.010699]
[1768323610474,0.09636,93540.0,93512.0,0.00737562]
[1768323610679,0.010696,93535.0,93513.0,0.00737562]
[1768323610874,0.0947229,93537.0,93513.0,0.00737562]
[1768323611677,0.14289622,93530.0,93511.0,0.00016038]
[1768323611883,0.0947229,93534.0,93514.0,0.09636]
[1768323612279,0.010697,93531.0,93514.0,0.09636]
[1768323612476,0.23761912,93530.0,93511.0,0.00016038]
[1768323612789,0.01080204,93540.0,93501.0,0.6]
[1768323612790,0.2366752,93521.0,93501.0,0.6]
[1768323612978,0.010699,93507.0,93493.0,0.09636]
[1768323613283,0.010699,93509.0,93493.0,0.09636]
[1768323613480,0.010699,93509.0,93488.0,0.01168155]
[1768323613684,0.010699,93509.0,93494.0,0.09636]
[1768323613886,0.0947229,93510.0,93494.0,0.09636]
[1768323614087,0.1054219,93510.0,93494.0,0.09636]
[1768323614793,0.1054219,93510.0,93495.0,0.09632]
[1768323615087,0.0947229,93510.0,93495.0,0.09632]
[1768323615680,0.1054219,93510.0,93495.0,0.09632]
[1768323616384,0.010699,93508.0,93495.0,0.09632]
[1768323617382,0.0947229,93510.0,93495.0,0.09632]
[1768323618089,0.010699,93509.0,93495.0,0.09632]
[1768323619280,0.0947229,93510.0,93495.0,0.09632]
[1768323619480,0.09841676,93508.0,93495.0,0.09632]
[1768323619785,0.09841676,93508.0,93478.0,0.9076]
[1768323619786,0.09841676,93502.0,93475.0,0.01727284]
[1768323619985,0.09841676,93502.0,93477.0,0.01727284]
[1768323620183,0.09841676,93502.0,93479.0,0.01727284]
[1768323620380,0.09841676,93502.0,93480.0,0.01727284]
[1768323620691,0.09841676,93502.0,93480.0,0.07727284]
[1768323621282,0.09841676,93502.0,93481.0,0.01764757]
[1768323621484,0.09841676,93502.0,93481.0,0.07764757]
[1768323621983,0.14289622,93500.0,93481.0,0.01764757]
[1768323622185,0.010701,93495.0,93475.0,0.01764757]
[1768323622380,0.09841676,93493.0,93469.0,0.01764757]
[1768323622581,0.09841676,93491.0,93466.0,0.05614758]
[1768323622780,0.09841676,93491.0,93469.0,0.01764757]
[1768323622976,0.09841676,93491.0,93470.0,0.01764345]
[1768323623180,0.09841676,93491.0,93470.0,0.07764345]
[1768323623789,0.09841676,93491.0,93470.0,0.08834645]
[1768323624095,0.09841676,93498.0,93473.0,0.01764345]
[1768323624785,0.09632,93500.0,93473.0,0.06764345]
[1768323624786,0.09841676,93496.0,93473.0,0.06764345]
[1768323625186,0.09841676,93496.0,93473.0,0.01764345]
[1768323625495,0.09841676,93508.0,93484.0,0.02204717]
[1768323625695,0.09841676,93508.0,93484.0,0.17836717]
[1768323626193,0.09841676,93508.0,93488.0,0.010701]
[1768323626492,0.09841676,93508.0,93489.0,0.02204717]
[1768323626697,0.10911676,93502.0,93484.0,0.09632]
[1768323626991,0.09841676,93497.0,93476.0,0.02204717]
[1768323627189,0.09841676,93497.0,93477.0,0.09632]
[1768323627394,0.010701,93493.0,93477.0,0.14632]
[1768323627696,0.010701,93493.0,93477.0,0.09632]
[1768323628094,0.010701,93493.0,93477.0,0.14632]
[1768323628398,0.010701,93491.0,93477.0,0.14632]
[1768323628692,0.09841676,93490.0,93474.0,0.09632]
[1768323628894,0.09351555,93495.0,93474.0,0.09632]
[1768323628895,0.09841676,93486.0,93474.0,0.09632]
[1768323629495,0.09841676,93486.0,93470.0,0.09632]
[1768323629796,0.09841676,93495.0,93470.0,0.15632]
[1768323630000,0.010701,93489.0,93470.0,0.15632]
[1768323630196,0.010701,93492.0,93470.0,0.15632]
[1768323630587,0.010701,93490.0,93470.0,0.15632]
[1768323630788,0.09841676,93495.0,93470.0,0.15632]
[1768323631001,0.010702,93486.0,93470.0,0.15632]
[1768323631302,0.09841676,93495.0,93470.0,0.15632]
[1768323631597,0.09841676,93495.0,93471.0,0.0794976]
[1768323631786,0.09841676,93502.0,93476.0,0.05842856]
[1768323631989,0.09636,93506.0,93481.0,0.02106904]
[1768323632188,0.09841676,93509.0,93488.0,0.02106904]
[1768323632383,0.0107,93503.0,93488.0,0.06]
[1768323632588,0.0107,93503.0,93482.0,0.09636]
[1768323632794,0.0107,93503.0,93482.0,0.14636]
[1768323633196,0.0107,93503.0,93482.0,0.16935959]
[1768323633500,0.0107,93503.0,93483.0,0.02299959]
[1768323633689,0.0107,93503.0,93483.0,0.07299959]
[1768323633890,0.09841676,93509.0,93483.0,0.07299959]
[1768323634090,0.09841676,93513.0,93488.0,0.02299959]
[1768323634396,0.0107,93503.0,93488.0,0.05]
[1768323634999,0.09119631,93509.0,93488.0,0.07345528]
[1768323635298,0.010698,93514.0,93490.0,0.02345528]
[1768323635599,0.10189431,93514.0,93491.0,0.02345528]
[1768323635988,0.010699,93511.0,93491.0,0.08345528]
[1768323636202,0.010699,93511.0,93491.0,0.02345528]
[1768323636400,0.09104547,93485.0,93473.0,1.4e-07]
[1768323636703,0.010699,93507.0,93473.0,0.05]
[1768323636903,0.010698,93514.0,93473.0,0.09424988]
[1768323636904,0.0107,93505.0,93473.0,0.09424988]
[1768323637097,0.010701,93495.0,93473.0,0.09424988]
[1768323637301,0.010701,93495.0,93474.0,0.09424988]
[1768323637489,0.0107,93505.0,93476.0,0.09424988]
[1768323637689,0.0107,93498.0,93476.0,0.09424988]
[1768323637896,0.0107,93497.0,93476.0,0.09424988]
[1768323638096,0.09636,93504.0,93476.0,0.09424988]
[1768323638397,0.09636,93504.0,93475.0,0.09235439]
[1768323638591,0.09119631,93503.0,93475.0,0.15235439]
[1768323639002,0.010701,93493.0,93475.0,0.15235439]
[1768323640204,0.20193113,93510.0,93450.0,0.14289622]
[1768323640205,0.010703,93476.0,93453.0,0.09960016]
[1768323640397,0.010703,93477.0,93454.0,0.09636]
[1768323640593,0.09119631,93481.0,93454.0,0.09636]
[1768323640795,0.010703,93473.0,93454.0,0.09636]
[1768323641307,0.010702,93479.0,93454.0,0.09636]
[1768323641500,0.09119631,93475.0,93454.0,0.09636]
[1768323641698,0.010704,93466.0,93453.0,0.00535028]
[1768323641901,0.09119631,93474.0,93453.0,0.06535028]
[1768323642211,0.107063,93478.0,93455.0,0.09424988]
[1768323642396,0.16524707,93478.0,93455.0,0.15424988]
[1768323642705,0.010699,93509.0,93455.0,0.15424988]
[1768323642706,0.05974965,93487.0,93460.0,0.09235439]
[1768323642896,0.09119631,93493.0,93467.0,0.09424988]
[1768323643096,0.10189931,93472.0,93447.0,0.09424988]
[1768323643409,0.09119631,93472.0,93447.0,0.09424988]
[1768323643602,0.09636,93480.0,93454.0,0.09424988]
[1768323643798,0.010703,93477.0,93454.0,0.15424988]
[1768323645100,0.107062,93480.0,93454.0,0.15424988]
[1768323645305,0.19825831,93480.0,93454.0,0.15424988]
[1768323645504,0.010703,93475.0,93454.0,0.15424988]
[1768323646105,0.09119631,93475.0,93454.0,0.06]
[1768323646297,0.09119631,93475.0,93453.0,0.00535028]
[1768323646298,0.010703,93471.0,93453.0,0.00535028]
[1768323646699,0.10189931,93471.0,93453.0,0.00535028]
[1768323647295,0.18224178,93471.0,93453.0,0.00535028]
[1768323647498,0.09119631,93468.0,93449.0,0.00011802]
[1768323647701,0.010704,93467.0,93449.0,0.00011802]
[1768323648206,0.09119631,93467.0,93449.0,0.00011802]
[1768323648408,0.010704,93463.0,93449.0,0.00011802]
[1768323648610,0.09119631,93465.0,93449.0,0.00011802]
[1768323649001,0.010705,93459.0,93438.0,0.09636]
[1768323649201,0.010704,93462.0,93438.0,0.09636]
[1768323649398,0.010704,93462.0,93431.0,0.010708]
[1768323649399,0.09119631,93459.0,93431.0,0.010708]
[1768323649603,0.09119631,93457.0,93432.0,0.09636]
[1768323649908,0.18224178,93457.0,93432.0,0.15636]
[1768323650106,0.09131433,93456.0,93432.0,0.15636]
[1768323650509,0.10201933,93456.0,93432.0,0.15636]
[1768323650902,0.010706,93452.0,93432.0,0.06]
[1768323651108,0.09119631,93449.0,93426.0,0.09424988]
[1768323651301,0.09119631,93449.0,93426.0,0.06]
[1768323652206,0.09119631,93449.0,93425.0,0.09636]
[1768323652410,0.09119631,93447.0,93425.0,0.09636]
[1768323652601,0.09129097,93446.0,93425.0,0.15636]
[1768323652802,0.09129097,93446.0,93425.0,0.09636]
[1768323654113,0.09129097,93446.0,93426.0,0.010708]
[1768323654308,9.466e-05,93446.0,93429.0,0.18660427]
[1768323654511,9.466e-05,93446.0,93430.0,0.09424988]
[1768323655112,9.466e-05,93446.0,93425.0,0.107069]
[1768323655412,9.466e-05,93446.0,93425.0,0.26131888]
[1768323655804,9.466e-05,93446.0,93427.0,0.010708]
[1768323655999,0.05,98121.0,93433.0,0.09424988]
[1768323656000,0.09119631,93462.0,93433.0,0.09424988]
[1768323656216,0.09636,93458.0,93434.0,0.09424988]
[1768323656508,0.09636,93458.0,93436.0,0.10495688]
[1768323656709,0.10190131,93454.0,93429.0,0.09424988]
[1768323656915,0.10190131,93454.0,93429.0,0.06]
[1768323657413,0.010706,93450.0,93429.0,0.06]
[1768323657713,0.09119631,93449.0,93433.0,0.00535143]
[1768323658412,0.010706,93446.0,93433.0,0.00535143]
[1768323658613,0.010707,93443.0,93433.0,0.00535143]
[1768323658816,0.09119631,93445.0,93433.0,0.00535143]
[1768323659114,0.010706,93444.0,93433.0,0.00535143]
[1768323659415,0.010707,93440.0,93433.0,0.00535143]
[1768323659710,0.010707,93438.0,93421.0,0.09636]
[1768323660010,0.010707,93438.0,93417.0,0.09235439]
[1768323660315,0.09119631,93440.0,93417.0,0.23660427]
[1768323660908,0.010707,93438.0,93417.0,0.23660427]
[1768323661213,0.010707,93438.0,93417.0,0.18660427]
[1768323661511,0.09119631,93437.0,93414.0,0.0964]
[1768323661712,0.010707,93439.0,93415.0,0.09424988]
[1768323661903,0.1512311,93444.0,93418.0,0.10495888]
[1768323662104,0.1512311,93444.0,93420.0,0.10495888]
[1768323662419,0.00016047,93435.0,93420.0,0.16495888]
[1768323662608,0.00016047,93435.0,93420.0,0.10495888]
[1768323662808,0.00016047,93435.0,93422.0,0.010709]
[1768323663009,0.00016047,93435.0,93423.0,0.010709]
[1768323663216,0.1512311,93444.0,93420.0,0.09424988]
[1768323663512,0.09119631,93438.0,93419.0,0.00016047]
[1768323663716,0.010708,93434.0,93419.0,0.00016047]
[1768323663915,0.09119631,93438.0,93419.0,0.00016047]
[1768323664307,0.010707,93437.0,93419.0,0.00016047]
[1768323664619,0.09119631,93438.0,93419.0,0.00016047]
[1768323665219,0.10190331,93438.0,93419.0,0.00016047]
[1768323665413,0.06003479,93444.0,93419.0,0.00016047]
[1768323665617,0.0911347,93443.0,93419.0,0.05016047]
[1768323665916,0.1018417,93441.0,93419.0,0.05016047]
[1768323666122,0.1018417,93441.0,93414.0,0.0964]
[1768323666123,0.010709,93425.0,93411.0,0.09281961]
[1768323666417,0.0911347,93427.0,93398.0,0.0964]
[1768323666621,0.010709,93419.0,93401.0,0.08014443]
[1768323666821,0.14289622,93420.0,93401.0,0.08014443]
[1768323667015,0.01071,93416.0,93401.0,0.08014443]
[1768323667519,0.1018447,93416.0,93401.0,0.02014443]
[1768323667818,0.0911347,93416.0,93401.0,0.02014443]
[1768323668413,0.0911347,93416.0,93401.0,0.00484443]
[1768323668716,0.1018447,93416.0,93398.0,0.0964]
[1768323668914,0.0911347,93416.0,93398.0,0.1564]
[1768323669823,0.0911347,93414.0,93398.0,0.1564]
[1768323670214,0.0911347,93414.0,93398.0,0.0964]
[1768323670622,0.0911347,93414.0,93398.0,0.1564]
[1768323672327,0.0911347,93413.0,93398.0,0.1564]
[1768323672520,0.19608396,93412.0,93393.0,0.00535372]
[1768323672824,0.0911347,93411.0,93393.0,0.05535372]
[1768323673410,0.010711,93408.0,93393.0,0.05535372]
[1768323673626,0.0911347,93411.0,93393.0,0.05535372]
[1768323673925,0.08578442,93411.0,93393.0,0.05535372]
[1768323675421,0.00016057,93418.0,93397.0,0.09942439]
[1768323675622,0.0964,93417.0,93400.0,0.010711]
[1768323675926,0.0964,93417.0,93397.0,0.11013639]
[1768323676125,0.0964,93417.0,93399.0,0.010712]
[1768323676621,0.0964,93417.0,93397.0,0.09942439]
[1768323676826,0.0964,93417.0,93397.0,0.14942439]
[1768323677123,0.0964,93417.0,93397.0,0.09942439]
[1768323677313,0.0964,93417.0,93397.0,0.15942439]
[1768323677721,0.0964,93417.0,93398.0,0.09105455]
[1768323678024,0.00016057,93418.0,93403.0,0.09105455]
[1768323678220,0.010709,93422.0,93403.0,0.15105455]
[1768323678531,0.010709,93418.0,93403.0,0.15105455]
[1768323678720,0.010709,93418.0,93403.0,0.06]
[1768323679726,0.010709,93422.0,93403.0,0.06]
[1768323680024,0.09379967,93426.0,93398.0,0.00016057]
[1768323680025,0.010711,93406.0,93398.0,0.00016057]
[1768323680617,0.10450967,93412.0,93398.0,0.00016057]
[1768323680820,0.09379967,93417.0,93398.0,0.00016057]
[1768323681021,0.09077458,93416.0,93398.0,0.00016057]
[1768323681220,0.09379967,93415.0,93398.0,0.00016057]
[1768323682016,0.01071,93413.0,93398.0,0.00016057]
[1768323682220,0.10450967,93413.0,93398.0,0.00016057]
[1768323682529,0.09379967,93413.0,93398.0,0.00016057]
[1768323685330,0.10450967,93412.0,93398.0,0.00016057]
[1768323685629,0.09379967,93406.0,93393.0,0.00535372]
[1768323687430,0.09379967,93405.0,93393.0,0.00535372]
[1768323689532,0.09379967,93395.0,93372.0,0.010715]
[1768323689735,0.09379967,93393.0,93373.0,0.05535487]
[1768323689931,0.09379967,93393.0,93373.0,0.04225487]
[1768323690129,0.08845053,93393.0,93373.0,0.04225487]
[1768323690329,0.00016057,93392.0,93378.0,0.010714]
[1768323690536,0.00016057,93392.0,93378.0,0.070714]
[1768323690829,0.00012076,93391.0,93378.0,0.06]
[1768323691049,0.09644,93401.0,93388.0,0.010713]
[1768323691226,0.09077458,93411.0,93388.0,0.010713]
[1768323691634,0.10715,93410.0,93388.0,0.010713]
[1768323691829,0.10715,93410.0,93384.0,0.09105455]
[1768323691830,0.010711,93409.0,93385.0,0.010713]
[1768323692029,0.09379967,93409.0,93385.0,0.010713]
[1768323692232,0.09379967,93405.0,93384.0,0.09105455]
[1768323692430,0.09379967,93404.0,93379.0,0.09105455]
[1768323692631,0.09379967,93404.0,93383.0,0.010713]
[1768323692936,0.09379967,93404.0,93383.0,0.060713]
[1768323693733,0.10451067,93404.0,93383.0,0.060713]
[1768323693935,0.10451067,93404.0,93383.0,0.05]
[1768323694144,0.19023967,93404.0,93383.0,0.05]
[1768323694335,0.09379967,93411.0,93392.0,0.010712]
[1768323694638,0.10148458,93414.0,93379.0,0.010714]
[1768323694639,0.09379967,93403.0,93379.0,0.010714]
[1768323694825,0.09139489,93397.0,93379.0,0.05]
[1768323695224,0.09139489,93396.0,93379.0,0.05]
[1768323696637,0.09139489,93395.0,93379.0,0.05]
[1768323698138,0.08604346,93395.0,93379.0,0.05]
[1768323698340,0.09753523,93379.0,93349.0,0.09453368]
[1768323698641,0.010714,93383.0,93355.0,0.10525068]
[1768323698939,0.010714,93376.0,93355.0,0.15453368]
[1768323699124,0.010714,93379.0,93360.0,0.00016066]
[1768323699331,0.10824923,93379.0,93360.0,0.01016066]
[1768323699834,0.09753523,93379.0,93361.0,0.09644]
[1768323700030,0.09139489,93378.0,93361.0,0.09644]
[1768323700335,0.09139489,93375.0,93359.0,0.09644]
[1768323700539,0.09139489,93375.0,93359.0,0.14644]
[1768323702539,0.10210889,93375.0,93359.0,0.14644]
[1768323702734,0.09753523,93369.0,93337.0,0.09453368]
[1768323702935,0.09139489,93365.0,93339.0,0.010718]
[1768323703133,0.09139489,93365.0,93339.0,0.070718]
[1768323703438,0.09139489,93364.0,93339.0,0.070718]
[1768323703635,0.09139489,93364.0,93342.0,0.010718]
[1768323703832,0.09139489,93364.0,93337.0,0.09453368]
[1768323704048,0.18893012,93354.0,93337.0,0.02]
[1768323704336,0.18893012,93354.0,93309.0,0.010722]
[1768323704337,0.09139489,93358.0,93329.0,0.09845722]
[1768323704533,1.59139489,93358.0,93332.0,0.10917622]
[1768323704731,0.10405039,93384.0,93332.0,0.10917622]
[1768323704732,0.09139489,93372.0,93334.0,0.09845722]
[1768323704932,0.010715,93368.0,93341.0,0.09845722]
[1768323705137,0.00016066,93362.0,93345.0,0.010718]
[1768323705337,0.00016066,93362.0,93346.0,0.09644]
[1768323705539,0.00016066,93362.0,93346.0,0.19489722]
[1768323706135,0.00016066,93362.0,93346.0,0.09644]
[1768323706834,0.09139489,93359.0,93328.0,0.09845722]
[1768323707036,0.00016066,93362.0,93337.0,0.010719]
[1768323707237,0.00016066,93362.0,93339.0,0.09453368]
[1768323707540,0.00016066,93362.0,93339.0,0.15453368]
[1768323707740,0.00016066,93362.0,93340.0,0.09644]
[1768323708047,0.00016066,93362.0,93340.0,0.15644]
[1768323708549,0.10211089,93361.0,93340.0,0.15644]
[1768323708854,0.09139489,93357.0,93340.0,0.15644]
[1768323709946,0.10210889,93374.0,93349.0,0.09453368]
[1768323710142,0.10210889,93374.0,93349.0,0.15453368]
[1768323711747,0.09139489,93382.0,93358.0,0.09453368]
[1768323711933,0.09139489,93389.0,93364.0,0.09453368]
[1768323712138,0.09139489,93386.0,93364.0,0.06]
[1768323712338,0.010713,93385.0,93364.0,0.06]
[1768323712548,0.09139489,93386.0,93364.0,0.06]
[1768323713244,0.05835615,93391.0,93366.0,0.09453368]
[1768323713444,0.09139489,93403.0,93377.0,0.10524768]
[1768323713636,0.14906623,93403.0,93378.0,0.19101368]
[1768323713836,0.09139489,93403.0,93380.0,0.010714]
[1768323714032,0.10210589,93403.0,93380.0,0.09453368]
[1768323714249,0.09753523,93412.0,93381.0,0.09469434]
[1768323714250,0.010711,93406.0,93381.0,0.09469434]
[1768323714442,0.09139489,93410.0,93381.0,0.09469434]
[1768323714443,0.09139489,93410.0,93383.0,0.010713]
[1768323714643,0.01071,93417.0,93391.0,0.09453368]
[1768323714850,0.01071,93415.0,93392.0,0.09648]
[1768323715045,0.09139489,93417.0,93392.0,0.09648]
[1768323715349,0.01071,93416.0,93392.0,0.09648]
[1768323715554,0.09139489,93417.0,93392.0,0.14648]
[1768323715748,0.01071,93416.0,93392.0,0.14648]
[1768323715938,0.01071,93413.0,93392.0,0.09648]
[1768323716441,0.09753523,93417.0,93392.0,0.09648]
[1768323716743,0.09753523,93415.0,93393.0,0.09648]
[1768323716933,0.09753523,93415.0,93393.0,0.15648]
[1768323717137,0.01071,93412.0,93393.0,0.15648]
[1768323717347,0.10824523,93415.0,93393.0,0.15648]
[1768323717651,0.10824523,93412.0,93394.0,0.09648]
[1768323717838,0.10824523,93412.0,93394.0,0.15648]
[1768323718735,0.01071,93412.0,93394.0,0.15648]
[1768323719051,0.09139489,93413.0,93394.0,0.15648]
[1768323721849,0.09753523,93412.0,93394.0,0.06]
[1768323722055,0.09139489,93407.0,93391.0,0.09644]
[1768323722242,0.09139489,93407.0,93392.0,0.09644]
[1768323722550,0.09139489,93416.0,93395.0,0.010712]
[1768323722736,0.09139489,93416.0,93395.0,0.05]
[1768323723456,0.01071,93414.0,93396.0,0.00016066]
[1768323723651,0.01071,93414.0,93396.0,0.06016066]
[1768323724052,0.09139489,93416.0,93396.0,0.06016066]
[1768323724254,0.09139489,93423.0,93399.0,0.1929909]
[1768323724454,0.09139489,93437.0,93406.0,0.09453368]
[1768323724750,0.14994603,93437.0,93412.0,0.09962997]
[1768323725143,0.010707,93436.0,93412.0,0.09962997]
[1768323725344,0.010708,93433.0,93412.0,0.09962997]
[1768323725656,0.09367958,93434.0,93408.0,0.09962997]
[1768323725849,0.05855114,93437.0,93410.0,0.0984674]
[1768323726155,0.010708,93435.0,93411.0,0.09962997]
[1768323726450,0.010708,93432.0,93411.0,0.55962997]
[1768323726648,0.010708,93429.0,93411.0,0.46]
[1768323726852,0.010708,93427.0,93412.0,0.09644]
[1768323727051,0.010708,93427.0,93413.0,0.09644]
[1768323727246,0.010708,93427.0,93413.0,0.55644]
[1768323727645,0.09367958,93429.0,93413.0,0.55644]
[1768323728455,0.09367958,93437.0,93413.0,0.55644]
[1768323728959,0.09367958,93437.0,93413.0,0.65606997]
[1768323729258,0.00513761,93438.0,93415.0,0.19809737]
[1768323729553,0.00513761,93438.0,93415.0,0.54809737]
[1768323729854,0.010707,93443.0,93415.0,0.35]
[1768323730056,0.010708,93433.0,93415.0,0.35]
[1768323730249,0.010708,93430.0,93415.0,0.35]
[1768323730652,0.010708,93428.0,93415.0,0.35]
[1768323731047,0.010709,93426.0,93415.0,0.35]
[1768323731247,0.010708,93430.0,93415.0,0.41]
[1768323731447,0.23960741,93450.0,93416.0,0.0984674]
[1768323731653,0.010706,93445.0,93423.0,0.19809737]
[1768323731958,0.010706,93448.0,93424.0,0.09644]
[1768323732154,0.010706,93447.0,93424.0,0.43644]
[1768323732350,0.010708,93432.0,93424.0,0.43644]
[1768323732552,0.010708,93435.0,93424.0,0.43644]
[1768323733058,0.14316741,93450.0,93424.0,0.43644]
[1768323733059,0.010706,93449.0,93424.0,0.43644]
[1768323733259,0.09367958,93446.0,93424.0,0.43644]
[1768323733758,0.010706,93445.0,93424.0,0.43644]
[1768323734158,0.09367958,93446.0,93424.0,0.43644]
[1768323734354,0.19060837,93454.0,93426.0,0.0984674]
[1768323734561,0.010705,93457.0,93426.0,0.0984674]
[1768323734562,0.09692879,93460.0,93432.0,0.09962997]
[1768323734749,0.09692879,93460.0,93434.0,0.0984674]
[1768323734949,0.010705,93456.0,93435.0,0.09644]
[1768323735154,0.010705,93456.0,93436.0,0.09644]
[1768323735352,0.010705,93456.0,93436.0,0.43644]
[1768323735558,0.15568331,93460.0,93436.0,0.43644]
[1768323735559,0.010705,93453.0,93436.0,0.43644]
[1768323735760,0.010705,93453.0,93436.0,0.09644]
[1768323736152,0.010705,93456.0,93436.0,0.09644]
[1768323736762,0.010705,93456.0,93437.0,0.09115937]
[1768323737266,0.0587892,93461.0,93439.0,0.09115937]
[1768323737464,0.24498976,93461.0,93436.0,0.09644]
[1768323737758,0.18620056,93461.0,93436.0,0.09644]
[1768323737956,0.010705,93453.0,93436.0,0.09644]
[1768323738668,0.14316741,93450.0,93437.0,0.0964]
[1768323738853,0.010706,93444.0,93437.0,0.0964]
[1768323739172,0.010706,93444.0,93438.0,0.0964]
[1768323739348,0.010706,93447.0,93438.0,0.0964]
[1768323739552,0.18620056,93459.0,93438.0,0.0964]
[1768323739754,0.09004282,93458.0,93438.0,0.0964]
[1768323740763,0.13410942,93474.0,93445.0,0.09115937]
[1768323741061,0.010704,93468.0,93449.0,0.09115937]
[1768323741265,0.010704,93468.0,93450.0,0.0964]
[1768323741463,0.05886594,93470.0,93451.0,0.0964]
[1768323741658,0.010704,93465.0,93451.0,0.0964]
[1768323742659,0.010703,93472.0,93451.0,0.19069671]
[1768323742959,0.05795113,93478.0,93452.0,0.09429671]
[1768323743164,0.010703,93474.0,93453.0,0.09115937]
[1768323743358,0.010704,93470.0,93454.0,0.09115937]
[1768323744562,0.010703,93473.0,93455.0,0.18545608]
[1768323744762,0.010703,93473.0,93456.0,0.09115937]
[1768323745066,0.010703,93473.0,93451.0,0.05050009]
[1768323745367,0.010703,93476.0,93457.0,0.0964]
[1768323745564,0.05833183,93480.0,93458.0,0.0964]
[1768323745757,0.02135266,93485.0,93459.0,0.0964]
[1768323745957,0.010702,93481.0,93459.0,0.1564]
[1768323746158,0.010702,93484.0,93459.0,0.0964]
[1768323746362,0.22415224,93494.0,93459.0,0.1564]
[1768323746564,0.010701,93492.0,93461.0,0.010704]
[1768323746766,0.010702,93487.0,93461.0,0.06]
[1768323746958,0.010701,93490.0,93461.0,0.070704]
[1768323747158,0.010701,93490.0,93462.0,0.18545608]
[1768323747360,0.010701,93490.0,93465.0,0.18545608]
[1768323747572,0.00534799,93493.0,93467.0,0.18545608]
[1768323747758,0.01604899,93493.0,93468.0,0.09429671]
[1768323747960,0.010701,93491.0,93468.0,0.15429671]
[1768323748670,0.00534799,93493.0,93468.0,0.15429671]
[1768323748873,0.00534799,93493.0,93472.0,0.18545608]
[1768323749169,0.00534799,93493.0,93474.0,0.18545608]
[1768323749365,0.010701,93492.0,93473.0,0.0964]
[1768323749572,0.00534799,93493.0,93473.0,0.0794554]
[1768323749573,0.01604899,93493.0,93473.0,0.0794554]
[1768323749972,0.09539081,93493.0,93470.0,0.70804]
[1768323750173,0.09539081,93493.0,93471.0,0.0964]
[1768323751170,0.010701,93492.0,93471.0,0.0964]
[1768323752175,0.010702,93487.0,93471.0,0.0964]
[1768323752374,0.010703,93475.0,93452.0,0.09429671]
[1768323752672,0.09004282,93480.0,93454.0,0.09429671]
[1768323752876,0.09004282,93480.0,93455.0,0.09429671]
[1768323753076,0.010702,93479.0,93455.0,0.09429671]
[1768323753268,0.010703,93474.0,93455.0,0.09429671]
[1768323753574,0.09004282,93480.0,93455.0,0.09429671]
[1768323753575,0.010703,93477.0,93456.0,1.00528]
[1768323753873,0.10074482,93480.0,93456.0,1.06528]
[1768323754375,0.10074482,93480.0,93456.0,1.15957671]
[1768323754878,0.09581896,93487.0,93459.0,0.09025446]
[1768323755071,0.010702,93485.0,93461.0,0.09025446]
[1768323755267,0.10652096,93485.0,93461.0,0.09025446]
[1768323756075,0.09581896,93485.0,93461.0,0.09025446]
[1768323757567,0.09581896,93479.0,93462.0,0.09636]
[1768323759064,0.010702,93485.0,93462.0,0.18661446]
[1768323759873,0.09581896,93486.0,93462.0,0.18661446]
[1768323760177,0.09581896,93486.0,93463.0,0.09025446]
[1768323760578,0.10651996,93491.0,93469.0,0.09025446]
[1768323761272,0.09581896,93491.0,93469.0,0.09025446]
[1768323761577,0.0107,93496.0,93470.0,0.18865505]
[1768323761775,0.0107,93496.0,93472.0,0.09025446]
[1768323761974,0.0107,93496.0,93473.0,0.09636]
[1768323763583,0.15372579,93498.0,93473.0,0.09636]